[Event "Titled Tuesday Blitz January 10 Late 2023"]
[White "Keymer, Vincent"]
[Black "Andreev, Eduard"]
[WhiteFideId "12940690"]
[BlackFideId "14103400"]
[WhiteElo "2700"]
[BlackElo "2413"]
[Result "1-0"]
[Round "06"]
[TimeControl "180+2"]
[Date "2023.01.10"]
[WhiteClock "0:01:06"]
[BlackClock "0:00:06"]

1. a3 {[%clk 0:00:00]}  Nf6 {[%clk 0:00:00]} 2. Nf3 {[%clk 0:03:00]}  g6 {[%clk 0:02:56]} 3. d4 {[%clk 0:02:59]}  Bg7 {[%clk 0:02:55]} 4. c4 {[%clk 0:02:57]}  O-O {[%clk 0:02:55]} 5. e3 {[%clk 0:02:56]}  c5 {[%clk 0:02:55]} 6. d5 {[%clk 0:02:56]}  e6 {[%clk 0:02:44]} 7. Nc3 {[%clk 0:02:54]}  exd5 {[%clk 0:02:42]} 8. cxd5 {[%clk 0:02:53]}  d6 {[%clk 0:02:42]} 9. h3 {[%clk 0:02:54]}  Re8 {[%clk 0:02:38]} 10. Bd3 {[%clk 0:02:54]}  a6 {[%clk 0:02:36]} 11. a4 {[%clk 0:02:54]}  Nbd7 {[%clk 0:02:34]} 12. O-O {[%clk 0:02:52]}  Rb8 {[%clk 0:02:29]} 13. a5 {[%clk 0:02:47]}  b5 {[%clk 0:02:16]} 14. axb6 {[%clk 0:02:44]}  Qxb6 {[%clk 0:02:02]} 15. Ra2 {[%clk 0:02:43]}  Bb7 {[%clk 0:01:43]} 16. e4 {[%clk 0:02:33]}  a5 {[%clk 0:01:35]} 17. Re1 {[%clk 0:02:30]}  Ba6 {[%clk 0:01:15]} 18. Bc2 {[%clk 0:02:24]}  c4 {[%clk 0:01:11]} 19. Be3 {[%clk 0:02:14]}  Qc7 {[%clk 0:01:04]} 20. Qa1 {[%clk 0:02:00]}  Ra8 {[%clk 0:00:59]} 21. Rxa5 {[%clk 0:01:51]}  Bb7 {[%clk 0:00:49]} 22. Rxa8 {[%clk 0:01:48]}  Rxa8 {[%clk 0:00:47]} 23. Qd1 {[%clk 0:01:45]}  Nc5 {[%clk 0:00:48]} 24. Bd4 {[%clk 0:01:45]}  Re8 {[%clk 0:00:44]} 25. Qd2 {[%clk 0:01:41]}  Qb6 {[%clk 0:00:27]} 26. Na4 {[%clk 0:01:35]}  Qc7 {[%clk 0:00:25]} 27. Nxc5 {[%clk 0:01:32]}  dxc5 {[%clk 0:00:24]} 28. Bc3 {[%clk 0:01:31]}  Bc8 {[%clk 0:00:25]} 29. e5 {[%clk 0:01:31]}  Nh5 {[%clk 0:00:21]} 30. g4 {[%clk 0:01:27]}  Qd7 {[%clk 0:00:19]} 31. e6 {[%clk 0:01:23]}  fxe6 {[%clk 0:00:12]} 32. gxh5 {[%clk 0:01:07]}  Bxc3 {[%clk 0:00:09]} 33. bxc3 {[%clk 0:01:07]}  exd5 {[%clk 0:00:05]} 34. Rxe8+ {[%clk 0:01:07]}  Qxe8 {[%clk 0:00:06]} 35. Qxd5+ {[%clk 0:01:06]}  Be6 {[%clk 0:00:07]} 36. Qe5 {[%clk 0:01:06]}  Qf7 {[%clk 0:00:06]} 37. Ng5 {[%clk 0:01:06]}  Qg7 {[%clk 0:00:06]} 38. Qxe6+ {[%clk 0:01:06]} 1-0


[Site "https://www.chess.com"]

[Event "Titled Tuesday Blitz January 10 Late 2023"]
[White "Jones, Gawain C B"]
[Black "Denishev, Marat"]
[WhiteFideId "409561"]
[BlackFideId "24131563"]
[WhiteElo "2618"]
[BlackElo "2255"]
[Result "0-1"]
[Round "06"]
[TimeControl "180+2"]
[Date "2023.01.10"]
[WhiteClock "0:00:11"]
[BlackClock "0:00:04"]

1. d4 {[%clk 0:00:00]}  Nf6 {[%clk 0:00:00]} 2. Bf4 {[%clk 0:03:00]}  d5 {[%clk 0:02:56]} 3. e3 {[%clk 0:03:00]}  e6 {[%clk 0:02:51]} 4. Nf3 {[%clk 0:03:01]}  Bd6 {[%clk 0:02:52]} 5. Nbd2 {[%clk 0:03:00]}  Bxf4 {[%clk 0:02:52]} 6. exf4 {[%clk 0:02:55]}  Nbd7 {[%clk 0:02:51]} 7. Be2 {[%clk 0:02:56]}  O-O {[%clk 0:02:51]} 8. O-O {[%clk 0:02:54]}  c5 {[%clk 0:02:51]} 9. dxc5 {[%clk 0:02:54]}  Nxc5 {[%clk 0:02:51]} 10. c3 {[%clk 0:02:54]}  b6 {[%clk 0:02:51]} 11. Re1 {[%clk 0:02:52]}  Bb7 {[%clk 0:02:51]} 12. Nd4 {[%clk 0:02:51]}  Qd6 {[%clk 0:02:51]} 13. g3 {[%clk 0:02:50]}  Rad8 {[%clk 0:02:46]} 14. N2f3 {[%clk 0:02:50]}  Nfe4 {[%clk 0:02:47]} 15. a4 {[%clk 0:02:50]}  Qb8 {[%clk 0:02:38]} 16. Ne5 {[%clk 0:02:45]}  Qc8 {[%clk 0:02:35]} 17. a5 {[%clk 0:02:43]}  f6 {[%clk 0:02:14]} 18. Nd3 {[%clk 0:02:40]}  e5 {[%clk 0:02:13]} 19. Nb5 {[%clk 0:02:35]}  Nxd3 {[%clk 0:02:12]} 20. Bxd3 {[%clk 0:02:25]}  exf4 {[%clk 0:01:57]} 21. Nxa7 {[%clk 0:02:24]}  Qh3 {[%clk 0:01:57]} 22. axb6 {[%clk 0:02:15]}  Nxf2 {[%clk 0:01:37]} 23. Qf3 {[%clk 0:02:04]}  Nxd3 {[%clk 0:01:20]} 24. Qxd3 {[%clk 0:02:00]}  d4 {[%clk 0:00:58]} 25. Qf1 {[%clk 0:02:01]}  Qh5 {[%clk 0:00:58]} 26. Re7 {[%clk 0:02:00]}  fxg3 {[%clk 0:00:40]} 27. Qe2 {[%clk 0:01:03]}  gxh2+ {[%clk 0:00:36]} 28. Qxh2 {[%clk 0:00:52]}  Qg4+ {[%clk 0:00:30]} 29. Kf1 {[%clk 0:00:52]}  Qf3+ {[%clk 0:00:25]} 30. Qf2 {[%clk 0:00:50]}  Qh3+ {[%clk 0:00:24]} 31. Ke2 {[%clk 0:00:41]}  Rfe8 {[%clk 0:00:19]} 32. Rxe8+ {[%clk 0:00:37]}  Rxe8+ {[%clk 0:00:20]} 33. Kd2 {[%clk 0:00:35]}  dxc3+ {[%clk 0:00:21]} 34. bxc3 {[%clk 0:00:33]}  Qe6 {[%clk 0:00:21]} 35. Nb5 {[%clk 0:00:33]}  Qb3 {[%clk 0:00:11]} 36. Nd4 {[%clk 0:00:27]}  Qb2+ {[%clk 0:00:08]} 37. Nc2 {[%clk 0:00:19]}  Be4 {[%clk 0:00:06]} 38. Rc1 {[%clk 0:00:19]}  Rd8+ {[%clk 0:00:05]} 39. Ke3 {[%clk 0:00:15]}  Qxc1+ {[%clk 0:00:05]} 40. Kxe4 {[%clk 0:00:15]}  Rd2 {[%clk 0:00:05]} 41. b7 {[%clk 0:00:16]}  Rxf2 {[%clk 0:00:04]} 42. b8=Q+ {[%clk 0:00:14]}  Kf7 {[%clk 0:00:02]} 43. Qc7+ {[%clk 0:00:14]}  Kf8 {[%clk 0:00:03]} 44. Qb8+ {[%clk 0:00:14]}  Kf7 {[%clk 0:00:02]} 45. Qc7+ {[%clk 0:00:14]}  Kg8 {[%clk 0:00:02]} 46. Qc4+ {[%clk 0:00:14]}  Kf8 {[%clk 0:00:02]} 47. Qc8+ {[%clk 0:00:11]}  Kf7 {[%clk 0:00:02]} 48. Qd7+ {[%clk 0:00:12]}  Kf8 {[%clk 0:00:02]} 49. Qd8+ {[%clk 0:00:12]}  Kf7 {[%clk 0:00:03]} 50. Qd7+ {[%clk 0:00:12]}  Kf8 {[%clk 0:00:03]} 51. Ne3 {[%clk 0:00:12]}  Qb1+ {[%clk 0:00:04]} 52. Kd5 {[%clk 0:00:13]}  Rd2+ {[%clk 0:00:03]} 53. Ke6 {[%clk 0:00:10]}  Rxd7 {[%clk 0:00:03]} 54. Kxd7 {[%clk 0:00:11]}  Qd3+ {[%clk 0:00:04]} 0-1


[Site "https://www.chess.com"]

[Event "Titled Tuesday Blitz January 10 Late 2023"]
[White "Putnam, Liam"]
[Black "Sielecki, Christof"]
[WhiteFideId "30938279"]
[BlackFideId "4620437"]
[WhiteElo "2285"]
[BlackElo "2419"]
[Result "1-0"]
[Round "06"]
[TimeControl "180+2"]
[Date "2023.01.10"]
[WhiteClock "0:01:33"]
[BlackClock "0:00:38"]

1. e4 {[%clk 0:00:00]}  c5 {[%clk 0:00:00]} 2. Nf3 {[%clk 0:03:00]}  a6 {[%clk 0:02:59]} 3. c3 {[%clk 0:02:59]}  d5 {[%clk 0:02:59]} 4. exd5 {[%clk 0:02:57]}  Qxd5 {[%clk 0:02:59]} 5. d4 {[%clk 0:02:57]}  e6 {[%clk 0:03:00]} 6. Na3 {[%clk 0:02:57]}  Nf6 {[%clk 0:03:00]} 7. Nc4 {[%clk 0:02:54]}  Nbd7 {[%clk 0:02:59]} 8. Be2 {[%clk 0:02:54]}  b5 {[%clk 0:03:00]} 9. Ne3 {[%clk 0:02:54]}  Qc6 {[%clk 0:02:54]} 10. O-O {[%clk 0:02:53]}  Bb7 {[%clk 0:02:54]} 11. a4 {[%clk 0:02:53]}  b4 {[%clk 0:02:53]} 12. cxb4 {[%clk 0:02:53]}  cxb4 {[%clk 0:02:08]} 13. Nc4 {[%clk 0:02:45]}  a5 {[%clk 0:02:06]} 14. Bf4 {[%clk 0:02:42]}  Nd5 {[%clk 0:01:22]} 15. Bg3 {[%clk 0:02:39]}  N5b6 {[%clk 0:01:21]} 16. Rc1 {[%clk 0:02:37]}  Nxc4 {[%clk 0:01:02]} 17. Bxc4 {[%clk 0:02:18]}  Ba6 {[%clk 0:00:45]} 18. d5 {[%clk 0:02:03]}  Qxc4 {[%clk 0:00:42]} 19. Rxc4 {[%clk 0:01:42]}  Bxc4 {[%clk 0:00:41]} 20. dxe6 {[%clk 0:01:42]}  Bxe6 {[%clk 0:00:42]} 21. Nd4 {[%clk 0:01:42]}  Nc5 {[%clk 0:00:39]} 22. Nb5 {[%clk 0:01:37]}  Rc8 {[%clk 0:00:38]} 23. Nc7+ {[%clk 0:01:33]} 1-0


[Site "https://www.chess.com"]

[Event "Titled Tuesday Blitz January 10 Late 2023"]
[White "Rangel, Daniel"]
[Black "Karacsonyi, Gellert"]
[WhiteFideId "2124475"]
[BlackFideId "764620"]
[WhiteElo "2207"]
[BlackElo "2385"]
[Result "1/2-1/2"]
[Round "06"]
[TimeControl "180+2"]
[Date "2023.01.10"]
[WhiteClock "0:00:16"]
[BlackClock "0:00:20"]

1. c4 {[%clk 0:00:00]}  Nf6 {[%clk 0:00:00]} 2. g3 {[%clk 0:03:00]}  e6 {[%clk 0:02:59]} 3. Bg2 {[%clk 0:03:00]}  d5 {[%clk 0:02:59]} 4. Nf3 {[%clk 0:03:00]}  dxc4 {[%clk 0:03:00]} 5. Qa4+ {[%clk 0:03:00]}  Bd7 {[%clk 0:03:01]} 6. Qxc4 {[%clk 0:02:59]}  c5 {[%clk 0:03:01]} 7. O-O {[%clk 0:02:59]}  Bc6 {[%clk 0:03:02]} 8. b3 {[%clk 0:02:58]}  Be7 {[%clk 0:03:01]} 9. Bb2 {[%clk 0:02:46]}  O-O {[%clk 0:03:01]} 10. d4 {[%clk 0:02:45]}  cxd4 {[%clk 0:03:02]} 11. Qxd4 {[%clk 0:02:37]}  Qxd4 {[%clk 0:02:57]} 12. Nxd4 {[%clk 0:02:26]}  Bxg2 {[%clk 0:02:57]} 13. Kxg2 {[%clk 0:02:12]}  Nbd7 {[%clk 0:02:57]} 14. Nc3 {[%clk 0:02:12]}  Nb6 {[%clk 0:02:58]} 15. Rfd1 {[%clk 0:02:11]}  Nfd5 {[%clk 0:02:58]} 16. Nxd5 {[%clk 0:02:09]}  Nxd5 {[%clk 0:02:58]} 17. e4 {[%clk 0:02:04]}  Nb6 {[%clk 0:02:59]} 18. Nb5 {[%clk 0:02:01]}  Rfc8 {[%clk 0:02:51]} 19. Rac1 {[%clk 0:01:55]}  a6 {[%clk 0:02:19]} 20. Nc3 {[%clk 0:01:51]}  Kf8 {[%clk 0:02:17]} 21. Ne2 {[%clk 0:01:46]}  Ke8 {[%clk 0:02:15]} 22. Bxg7 {[%clk 0:01:40]}  f6 {[%clk 0:02:13]} 23. Bh6 {[%clk 0:01:35]}  Ba3 {[%clk 0:02:14]} 24. Rxc8+ {[%clk 0:01:35]}  Rxc8 {[%clk 0:02:10]} 25. Be3 {[%clk 0:01:32]}  Nd7 {[%clk 0:02:11]} 26. Nd4 {[%clk 0:01:28]}  Ke7 {[%clk 0:02:10]} 27. Rd2 {[%clk 0:01:22]}  Bb4 {[%clk 0:02:09]} 28. Rc2 {[%clk 0:01:20]}  Rb8 {[%clk 0:02:08]} 29. Bf4 {[%clk 0:01:19]}  Bd6 {[%clk 0:02:00]} 30. Bxd6+ {[%clk 0:01:06]}  Kxd6 {[%clk 0:01:56]} 31. f3 {[%clk 0:01:01]}  Ne5 {[%clk 0:01:57]} 32. Kf2 {[%clk 0:00:57]}  Nd3+ {[%clk 0:01:50]} 33. Ke3 {[%clk 0:00:51]}  Nb4 {[%clk 0:01:46]} 34. Rd2 {[%clk 0:00:49]}  Ke7 {[%clk 0:01:47]} 35. a3 {[%clk 0:00:49]}  Nc6 {[%clk 0:01:45]} 36. Nxc6+ {[%clk 0:00:48]}  bxc6 {[%clk 0:01:45]} 37. b4 {[%clk 0:00:48]}  Rb5 {[%clk 0:01:45]} 38. Rc2 {[%clk 0:00:49]}  Kd6 {[%clk 0:01:41]} 39. Rd2+ {[%clk 0:00:46]}  Kc7 {[%clk 0:01:41]} 40. Rc2 {[%clk 0:00:45]}  a5 {[%clk 0:01:41]} 41. Rc4 {[%clk 0:00:45]}  Rb8 {[%clk 0:01:41]} 42. bxa5 {[%clk 0:00:45]}  Rb3+ {[%clk 0:01:31]} 43. Kf4 {[%clk 0:00:42]}  Rxa3 {[%clk 0:01:32]} 44. Rc5 {[%clk 0:00:38]}  e5+ {[%clk 0:01:31]} 45. Kg4 {[%clk 0:00:35]}  Kd6 {[%clk 0:01:20]} 46. Rc2 {[%clk 0:00:33]}  Rxa5 {[%clk 0:01:21]} 47. Kf5 {[%clk 0:00:32]}  Ra3 {[%clk 0:01:21]} 48. f4 {[%clk 0:00:31]}  exf4 {[%clk 0:01:19]} 49. gxf4 {[%clk 0:00:25]}  Rf3 {[%clk 0:01:19]} 50. Rd2+ {[%clk 0:00:25]}  Kc5 {[%clk 0:01:18]} 51. Rc2+ {[%clk 0:00:24]}  Kb5 {[%clk 0:01:17]} 52. Rb2+ {[%clk 0:00:23]}  Ka4 {[%clk 0:01:17]} 53. Ra2+ {[%clk 0:00:23]}  Kb3 {[%clk 0:01:02]} 54. Ra6 {[%clk 0:00:19]}  c5 {[%clk 0:01:01]} 55. Rxf6 {[%clk 0:00:19]}  c4 {[%clk 0:01:01]} 56. Rc6 {[%clk 0:00:19]}  c3 {[%clk 0:01:02]} 57. e5 {[%clk 0:00:19]}  c2 {[%clk 0:01:02]} 58. e6 {[%clk 0:00:19]}  Rc3 {[%clk 0:01:00]} 59. Rb6+ {[%clk 0:00:19]}  Kc4 {[%clk 0:01:00]} 60. Rc6+ {[%clk 0:00:19]}  Kd4 {[%clk 0:00:58]} 61. Rxc3 {[%clk 0:00:18]}  Kxc3 {[%clk 0:00:57]} 62. e7 {[%clk 0:00:18]}  c1=Q {[%clk 0:00:58]} 63. e8=Q {[%clk 0:00:19]}  Qc2+ {[%clk 0:00:58]} 64. Qe4 {[%clk 0:00:19]}  Qxh2 {[%clk 0:00:59]} 65. Qe5+ {[%clk 0:00:19]}  Kc4 {[%clk 0:00:59]} 66. Qe6+ {[%clk 0:00:19]}  Kc5 {[%clk 0:00:56]} 67. Qe5+ {[%clk 0:00:18]}  Kc6 {[%clk 0:00:54]} 68. Qe6+ {[%clk 0:00:19]}  Kc7 {[%clk 0:00:54]} 69. Qe5+ {[%clk 0:00:19]}  Kd7 {[%clk 0:00:54]} 70. Qe6+ {[%clk 0:00:20]}  Kc7 {[%clk 0:00:53]} 71. Qe7+ {[%clk 0:00:19]}  Kc6 {[%clk 0:00:53]} 72. Qe6+ {[%clk 0:00:19]}  Kc5 {[%clk 0:00:53]} 73. Qe5+ {[%clk 0:00:20]}  Kc4 {[%clk 0:00:53]} 74. Ke6 {[%clk 0:00:20]}  Qh6+ {[%clk 0:00:54]} 75. Ke7 {[%clk 0:00:20]}  Qh4+ {[%clk 0:00:49]} 76. Kd6 {[%clk 0:00:20]}  Qd8+ {[%clk 0:00:47]} 77. Ke6 {[%clk 0:00:19]}  Qg8+ {[%clk 0:00:46]} 78. Kd7 {[%clk 0:00:19]}  Qf7+ {[%clk 0:00:44]} 79. Kd6 {[%clk 0:00:18]}  Qf8+ {[%clk 0:00:43]} 80. Kd7 {[%clk 0:00:18]}  Qf7+ {[%clk 0:00:40]} 81. Kd6 {[%clk 0:00:18]}  h5 {[%clk 0:00:37]} 82. f5 {[%clk 0:00:18]}  Qf8+ {[%clk 0:00:32]} 83. Kd7 {[%clk 0:00:17]}  Qf7+ {[%clk 0:00:28]} 84. Kd6 {[%clk 0:00:17]}  Qf8+ {[%clk 0:00:27]} 85. Kc7 {[%clk 0:00:17]}  Qf7+ {[%clk 0:00:26]} 86. Kb6 {[%clk 0:00:17]}  h4 {[%clk 0:00:24]} 87. Qe6+ {[%clk 0:00:14]}  Qxe6+ {[%clk 0:00:19]} 88. fxe6 {[%clk 0:00:13]}  h3 {[%clk 0:00:17]} 89. e7 {[%clk 0:00:14]}  h2 {[%clk 0:00:18]} 90. e8=Q {[%clk 0:00:15]}  h1=Q {[%clk 0:00:19]} 91. Qc6+ {[%clk 0:00:16]}  Qxc6+ {[%clk 0:00:20]} 92. Kxc6 {[%clk 0:00:16]} 1/2-1/2


[Site "https://www.chess.com"]

[Event "Titled Tuesday Blitz January 10 Late 2023"]
[White "Djordjevic, Vuk"]
[Black "Al-Tarboush, Ward"]
[WhiteFideId "902098"]
[BlackFideId "7601450"]
[WhiteElo "2375"]
[BlackElo "2256"]
[Result "1-0"]
[Round "06"]
[TimeControl "180+2"]
[Date "2023.01.10"]
[WhiteClock "0:00:07"]
[BlackClock "0:00:01"]

1. d4 {[%clk 0:00:00]}  Nf6 {[%clk 0:00:00]} 2. Bg5 {[%clk 0:03:00]}  g6 {[%clk 0:02:58]} 3. Bxf6 {[%clk 0:03:00]}  exf6 {[%clk 0:02:57]} 4. e3 {[%clk 0:03:00]}  Bg7 {[%clk 0:02:57]} 5. c4 {[%clk 0:03:01]}  O-O {[%clk 0:02:57]} 6. Nc3 {[%clk 0:03:02]}  b6 {[%clk 0:02:58]} 7. Be2 {[%clk 0:03:02]}  Bb7 {[%clk 0:02:58]} 8. Bf3 {[%clk 0:02:59]}  Nc6 {[%clk 0:02:57]} 9. Nge2 {[%clk 0:02:59]}  f5 {[%clk 0:02:56]} 10. O-O {[%clk 0:02:59]}  Re8 {[%clk 0:02:52]} 11. Nf4 {[%clk 0:02:58]}  a6 {[%clk 0:02:49]} 12. Rb1 {[%clk 0:02:56]}  Na5 {[%clk 0:02:39]} 13. Bxb7 {[%clk 0:02:53]}  Nxb7 {[%clk 0:02:35]} 14. b4 {[%clk 0:02:49]}  Nd6 {[%clk 0:02:36]} 15. Qd3 {[%clk 0:02:49]}  c6 {[%clk 0:02:28]} 16. a4 {[%clk 0:02:43]}  Qc7 {[%clk 0:02:25]} 17. Rfc1 {[%clk 0:02:42]}  Ne4 {[%clk 0:02:19]} 18. b5 {[%clk 0:02:31]}  axb5 {[%clk 0:02:19]} 19. cxb5 {[%clk 0:02:16]}  Qa7 {[%clk 0:02:12]} 20. bxc6 {[%clk 0:02:14]}  dxc6 {[%clk 0:02:12]} 21. Nxe4 {[%clk 0:02:08]}  fxe4 {[%clk 0:02:13]} 22. Qb3 {[%clk 0:02:08]}  Qxa4 {[%clk 0:02:13]} 23. Qxa4 {[%clk 0:02:08]}  Rxa4 {[%clk 0:02:12]} 24. Rxb6 {[%clk 0:01:22]}  Rc8 {[%clk 0:02:13]} 25. g4 {[%clk 0:01:23]}  Ra5 {[%clk 0:01:10]} 26. h3 {[%clk 0:01:16]}  c5 {[%clk 0:01:06]} 27. Nd5 {[%clk 0:00:53]}  Kf8 {[%clk 0:01:05]} 28. Rc4 {[%clk 0:00:53]}  f5 {[%clk 0:01:02]} 29. gxf5 {[%clk 0:00:44]}  gxf5 {[%clk 0:00:51]} 30. Rb7 {[%clk 0:00:42]}  Rc6 {[%clk 0:00:52]} 31. Nf4 {[%clk 0:00:43]}  Bh6 {[%clk 0:00:47]} 32. d5 {[%clk 0:00:33]}  Rd6 {[%clk 0:00:35]} 33. Ne6+ {[%clk 0:00:26]}  Kg8 {[%clk 0:00:36]} 34. Nxc5 {[%clk 0:00:26]}  Rxd5 {[%clk 0:00:36]} 35. Nd7 {[%clk 0:00:12]}  Rd1+ {[%clk 0:00:36]} 36. Kg2 {[%clk 0:00:10]}  Kf7 {[%clk 0:00:31]} 37. Nc5+ {[%clk 0:00:10]}  Kg6 {[%clk 0:00:29]} 38. Rb6+ {[%clk 0:00:05]}  Kh5 {[%clk 0:00:27]} 39. Nb3 {[%clk 0:00:06]}  Ra8 {[%clk 0:00:26]} 40. Rc5 {[%clk 0:00:06]}  Rg8+ {[%clk 0:00:19]} 41. Kh2 {[%clk 0:00:04]}  Rg5 {[%clk 0:00:19]} 42. Nd4 {[%clk 0:00:05]}  Bg7 {[%clk 0:00:16]} 43. Rxf5 {[%clk 0:00:05]}  Be5+ {[%clk 0:00:07]} 44. Rxe5 {[%clk 0:00:04]}  Rxe5 {[%clk 0:00:07]} 45. Rf6 {[%clk 0:00:03]}  Ra5 {[%clk 0:00:08]} 46. Rf4 {[%clk 0:00:03]}  Re5 {[%clk 0:00:06]} 47. Ne2 {[%clk 0:00:03]}  Rd2 {[%clk 0:00:05]} 48. Ng3+ {[%clk 0:00:03]}  Kg6 {[%clk 0:00:04]} 49. Nxe4 {[%clk 0:00:04]}  Ra2 {[%clk 0:00:04]} 50. Ng3 {[%clk 0:00:04]}  Rb5 {[%clk 0:00:04]} 51. Kg2 {[%clk 0:00:05]}  Rbb2 {[%clk 0:00:04]} 52. Ne4 {[%clk 0:00:05]}  h5 {[%clk 0:00:04]} 53. Rf6+ {[%clk 0:00:05]}  Kg7 {[%clk 0:00:03]} 54. Rf4 {[%clk 0:00:06]}  Kg6 {[%clk 0:00:03]} 55. Ng3 {[%clk 0:00:07]}  Kg5 {[%clk 0:00:04]} 56. h4+ {[%clk 0:00:07]}  Kg6 {[%clk 0:00:04]} 57. Ne4 {[%clk 0:00:07]}  Rc2 {[%clk 0:00:04]} 58. Rf6+ {[%clk 0:00:08]}  Kg7 {[%clk 0:00:04]} 59. Rf5 {[%clk 0:00:08]}  Rc4 {[%clk 0:00:05]} 60. Kf3 {[%clk 0:00:09]}  Raa4 {[%clk 0:00:04]} 61. Rf4 {[%clk 0:00:08]}  Kg6 {[%clk 0:00:05]} 62. Rf6+ {[%clk 0:00:08]}  Kg7 {[%clk 0:00:04]} 63. Re6 {[%clk 0:00:06]}  Kf7 {[%clk 0:00:04]} 64. Re5 {[%clk 0:00:07]}  Kg6 {[%clk 0:00:05]} 65. Rg5+ {[%clk 0:00:07]}  Kh6 {[%clk 0:00:05]} 66. Re5 {[%clk 0:00:06]}  Kg6 {[%clk 0:00:06]} 67. Kf4 {[%clk 0:00:05]}  Rcb4 {[%clk 0:00:06]} 68. f3 {[%clk 0:00:06]}  Ra1 {[%clk 0:00:05]} 69. Re6+ {[%clk 0:00:06]}  Kf7 {[%clk 0:00:04]} 70. Rh6 {[%clk 0:00:07]}  Rb5 {[%clk 0:00:04]} 71. Ng5+ {[%clk 0:00:06]}  Kg7 {[%clk 0:00:03]} 72. Rxh5 {[%clk 0:00:07]}  Ra4+ {[%clk 0:00:03]} 73. e4 {[%clk 0:00:07]}  Kg6 {[%clk 0:00:03]} 74. Rh8 {[%clk 0:00:07]}  Ra7 {[%clk 0:00:01]} 75. Rg8+ {[%clk 0:00:08]}  Kh5 {[%clk 0:00:01]} 76. Ne6 {[%clk 0:00:07]} 1-0


[Site "https://www.chess.com"]